[Event "SixDays GM March 2024"]
[Site "Budapest"]
[Date "2024.04.01"]
[Round "5.3"]
[White "Uskov, Artem"]
[Black "Mihok, Oliver"]
[Result "0-1"]
[ECO "E68"]
[WhiteElo "2392"]
[BlackElo "2549"]
[Annotator "TA"]
[PlyCount "148"]
[EventDate "2024.03.26"]
[EventType "tourn"]
[EventCountry "HUN"]
[SourceTitle "playchess.com"]
[Source "ChessBase"]
[SourceQuality "1"]
[TimeControl "5400+30"]

{[%evp 54,148,-110,-115,-93,-129,-132,-118,-112,-112,-117,-127,-121,-166,-158,-169,-172,-136,-166,-179,-171,-174,-151,-165,-162,-155,-122,-146,-111,-109,-104,-151,-151,-151,-151,-141,-141,-151,-151,-151,-151,-151,-141,-141,-141,-141,-141,-165,-131,-165,-165,-348,-350,-777,-843,-557,-719,-1069,-154,-154,-154,-1104,-180,-751,-422,-414,-381,-400,-400,-362,-355,-468,-429,-354,-161,-176,-161,-161,-154,-331,-317,-379,-375,-700,-688,-685,-651,-1010,-1066,-1394,-1256,-1343,-1298,-1257,-1245,-1022,-903]} 1. d4 {[%emt 0:10:25]} Nf6 {[%emt 0:00:06]} 2. Nf3 {[%emt 0:00:05]} g6 {[%emt 0:00:08]} 3. c4 {[%emt 0:00:06]} Bg7 {[%emt 0:00:06]} 4. g3 {[%emt 0:00:05]} O-O {[%emt 0:00:31]} 5. Bg2 {[%emt 0:00:06]} d6 {[%emt 0:00:05]} 6. Nc3 {[%emt 0:00:06]} Nbd7 {[%emt 0:00:12]} 7. O-O {[%emt 0:00:47]} e5 {[%emt 0:00:04]} 8. e4 {[%emt 0:00:05]} exd4 {[%emt 0:00:06]} 9. Nxd4 {[%emt 0:00:05]} Re8 {[%emt 0:00:05]} 10. h3 {[%emt 0:00:08]} Rb8 {[%emt 0:00:36]} 11. Be3 {[%emt 0:00:10]} a6 {[%emt 0:00:04]} 12. b3 {[%emt 0:00:04] E68: King's Indian: Fianchetto: 6...Nbd7 7 0-0 e5 8 e4.} Ne5 {[%emt 0:00:21]} 13. Qc2 {[%emt 0:14:44]} c5 {[%emt 0:01:21]} 14. Nde2 {[%emt 0:00:25]} b5 {[%emt 0:00:25]} 15. cxb5 {[%emt 0:00:46]} axb5 {[%emt 0:00:11]} 16. Rad1 {[%emt 0:01:36]} Qc7 {[%emt 0:10:06]} 17. Bg5 {[%emt 0:02:59]} b4 {[%emt 0:20:48]} 18. Bxf6 {[%emt 0:01:58]} Bxf6 {[%emt 0:00:21]} 19. Nd5 {[%emt 0:00:11]} Qd8 {[%emt 0:00:04]} 20. f4 {[%emt 0:04:27]} Nd7 {[%emt 0:00:42]} 21. Nxf6+ {[%emt 0:00:12]} Qxf6 {[%emt 0:00:16]} 22. Rd2 {[%emt 0:04:03]} Qe7 {[%emt 0:06:09]} 23. Rfd1 {[%emt 0:13:56]} Rb6 {[%emt 0:00:10]} 24. Qb2 $146 {[%emt 0:11:12]} ({Predecessor:} 24. g4 Ba6 25. e5 Bxe2 26. Rxe2 dxe5 27. Qd3 Nf8 28. Rxe5 Re6 29. Rxe6 Nxe6 30. Re1 {0-1 Walaszczyk,W (2245)-Plichta,K (2177) POL-chT 2nd League 2011 (8.75)}) 24... Nf6 {[%emt 0:07:49]} 25. e5 {[%emt 0:00:35]} dxe5 {[%emt 0:00:21]} 26. fxe5 {[%emt 0:00:12]} Qxe5 {[%emt 0:01:44]} 27. Qxe5 {[%emt 0:00:07]} Rxe5 {[%emt 0:00:02]} 28. Nf4 {[%emt 0:00:25]} Bb7 {[%emt 0:07:05]} 29. Rd8+ {[%emt 0:01:07]} Kg7 {[%emt 0:00:04]} 30. Rb8 {[%emt 0:00:53]} Bf3 $1 {[%emt 0:01:29]} 31. Rxb6 {[%emt 0:00:31]} Bxd1 {[%emt 0:00:05]} 32. Nd3 {[%emt 0:03:40]} Rg5 {[%emt 0:04:39]} 33. Kf2 {[%emt 0:04:21]} Bc2 $1 {[%emt 0:03:05]} 34. Nb2 {[%emt 0:02:08]} Ne4+ {[%emt 0:06:53]} 35. Bxe4 {[%emt 0:00:14]} Bxe4 {[%emt 0:00:01]} 36. Nc4 {[%emt 0:00:53]} Rd5 {[%emt 0:03:30]} 37. g4 {[%emt 0:08:05]} Bb1 {[%emt 0:04:29]} 38. a3 {[%emt 0:00:50]} bxa3 {[%emt 0:01:26]} 39. Nxa3 {[%emt 0:00:03]} Bd3 {[%emt 0:00:36]} 40. Nb5 {[%emt 0:02:15]} Re5 {[%emt 0:03:54]} 41. Nc3 {[%emt 0:00:30]} h5 {[%emt 0:01:05]} 42. b4 {[%emt 0:00:53] [#]} (42. gxh5 $142 Rxh5 43. Na4) 42... cxb4 $1 $17 {[%emt 0:01:32]} 43. Rxb4 {[%emt 0:00:02]} h4 {[%emt 0:00:33]} 44. Rd4 {[%emt 0:01:13]} Ba6 {[%emt 0:01:25]} 45. Ra4 {[%emt 0:01:44]} Bb7 {[%emt 0:01:54]} 46. Rb4 {[%emt 0:00:33]} Bc6 {[%emt 0:00:50]} 47. Rc4 {[%emt 0:00:44]} Bd7 {[%emt 0:00:59]} 48. Rd4 {[%emt 0:02:31]} Be6 {[%emt 0:00:10]} 49. Ne2 {[%emt 0:00:36]} Rb5 {[%emt 0:02:08]} 50. Rd2 {[%emt 0:00:57]} Rb3 {[%emt 0:01:04]} 51. Kg2 {[%emt 0:00:33]} Bc8 {[%emt 0:01:31]} 52. Kh2 $2 {[%emt 0:01:22]} (52. Ng1 {was worth a try.}) 52... Bb7 $19 {[%emt 0:01:12]} 53. Nf4 $2 {[%emt 0:00:21]} (53. Nc1 Rf3 54. Rb2) 53... Rb1 $19 {[%emt 0:02:50]} 54. Ng2 {[%emt 0:00:40]} g5 {[%emt 0:00:47]} 55. Rf2 {[%emt 0:00:25]} Rd1 $2 {[%emt 0:01:24]} (55... Kg8 $19 {is more deadly.} 56. Re2 Rf1) 56. Rb2 $17 {[%emt 0:00:33]} Bd5 {[%emt 0:00:15]} 57. Rf2 $2 {[%emt 0:00:17]} (57. Re2 $17) 57... Kg6 $2 {[%emt 0:01:03]} (57... Kf8 58. Re2 Rf1) 58. Rb2 $2 {[%emt 0:00:15]} (58. Ne1) 58... Kf6 {[%emt 0:00:28]} 59. Rf2+ {[%emt 0:00:41]} Ke6 {[%emt 0:00:34]} 60. Re2+ {[%emt 0:02:16]} Kd6 {[%emt 0:00:22]} 61. Ne1 {[%emt 0:00:51]} Kc5 {[%emt 0:02:34]} 62. Kg1 {[%emt 0:01:16]} Bc4 {[%emt 0:01:43]} 63. Re4 {[%emt 0:01:21]} Rb1 {[%emt 0:01:24]} (63... Kd5 $142 64. Re7 Kd4) 64. Kf2 $19 {[%emt 0:01:03]} Rb2+ {[%emt 0:00:15]} 65. Kg1 {[%emt 0:00:02]} Kd5 {[%emt 0:00:49]} 66. Re8 $2 {[%emt 0:00:43] [#]} (66. Re7 $17) 66... Rb3 $1 $19 {[%emt 0:00:29]} 67. Kg2 {[%emt 0:00:51]} Rg3+ {[%emt 0:00:33]} 68. Kh2 $2 {[%emt 0:00:02]} (68. Kf2 Rxh3 69. Nf3) 68... Bf1 $19 {[%emt 0:00:15]} 69. Ra8 {[%emt 0:00:57]} f6 {[%emt 0:00:52]} 70. Ra2 {[%emt 0:00:54]} Bxh3 {[%emt 0:00:32]} 71. Rf2 {[%emt 0:00:12]} Ke6 {[%emt 0:00:28]} 72. Rd2 {[%emt 0:01:18]} Bxg4 {[%emt 0:00:11]} 73. Nd3 {[%emt 0:00:03]} Re3 {[%emt 0:00:41]} 74. Nc5+ {[%emt 0:00:16]} Kf7 {[%emt 0:00:19]} 0-1

[Event "SixDays GM March 2024"]
[Site "Budapest"]
[Date "2024.04.01"]
[Round "5.4"]
[White "Mayank Chakraborty"]
[Black "Juhasz, Agoston"]
[Result "1-0"]
[ECO "B12"]
[WhiteElo "2386"]
[BlackElo "2406"]
[Annotator "ChessBase"]
[PlyCount "117"]
[EventDate "2024.03.26"]
[EventType "tourn"]
[EventCountry "HUN"]
[SourceTitle "playchess.com"]
[Source "ChessBase"]
[SourceQuality "1"]
[TimeControl "5400+30"]

1. e4 {[%emt 0:00:02]} c6 {[%emt 0:00:16]} 2. d4 {[%emt 0:00:04]} d5 {[%emt 0:00:04]} 3. f3 {[%emt 0:00:03]} e6 {[%emt 0:00:35]} 4. Nc3 {[%emt 0:00:05]} Bb4 {[%emt 0:00:14]} 5. Bd2 {[%emt 0:00:06]} b6 {[%emt 0:04:44]} 6. Nce2 {[%emt 0:03:50]} Bxd2+ {[%emt 0:03:51]} 7. Qxd2 {[%emt 0:00:01]} Ba6 {[%emt 0:01:03]} 8. h4 {[%emt 0:02:30]} Ne7 {[%emt 0:02:36]} 9. h5 {[%emt 0:00:32]} h6 {[%emt 0:01:27]} 10. O-O-O {[%emt 0:02:12]} Nd7 {[%emt 0:03:52]} 11. g4 {[%emt 0:04:30]} c5 {[%emt 0:05:02]} 12. exd5 {[%emt 0:05:43]} Nxd5 {[%emt 0:03:50]} 13. Nf4 {[%emt 0:02:08]} Bxf1 {[%emt 0:07:41]} 14. Nxd5 {[%emt 0:00:07]} Ba6 {[%emt 0:02:11]} 15. Nc3 {[%emt 0:01:36]} Bb7 {[%emt 0:15:14]} 16. d5 {[%emt 0:01:33]} Nf6 {[%emt 0:03:26]} 17. g5 {[%emt 0:35:54]} Nxd5 {[%emt 0:06:34]} 18. Ne4 {[%emt 0:00:34]} c4 {[%emt 0:03:41]} 19. Qd4 {[%emt 0:03:31]} f6 {[%emt 0:01:45]} 20. gxf6 {[%emt 0:01:07]} gxf6 {[%emt 0:00:10]} 21. Qxc4 {[%emt 0:00:50]} f5 {[%emt 0:04:59]} 22. Qa4+ {[%emt 0:05:40]} Kf7 {[%emt 0:00:51]} 23. Ne2 {[%emt 0:04:23]} Qc7 {[%emt 0:01:43]} 24. N4c3 {[%emt 0:02:28]} Rad8 {[%emt 0:02:52]} 25. Nb5 {[%emt 0:07:20]} Qc5 {[%emt 0:02:39]} 26. Nbd4 {[%emt 0:01:54]} a6 {[%emt 0:01:36]} 27. Rhg1 {[%emt 0:01:59]} Qb4 {[%emt 0:02:23]} 28. Qxb4 {[%emt 0:02:06]} Nxb4 {[%emt 0:00:02]} 29. Nf4 {[%emt 0:02:25]} e5 {[%emt 0:04:51]} 30. Ng6 {[%emt 0:00:21]} exd4 {[%emt 0:03:45]} 31. Nxh8+ {[%emt 0:00:04]} Rxh8 {[%emt 0:00:02]} 32. Rxd4 {[%emt 0:00:01]} Nd5 {[%emt 0:00:14]} 33. Rg6 {[%emt 0:01:14]} Ne7 {[%emt 0:00:32]} 34. Rxb6 {[%emt 0:00:08]} Bxf3 {[%emt 0:00:14]} 35. Rh4 {[%emt 0:02:40]} a5 {[%emt 0:08:38]} 36. Ra6 {[%emt 0:00:35]} Nd5 {[%emt 0:01:28]} 37. Rxa5 {[%emt 0:02:24]} Kf6 {[%emt 0:00:39]} 38. Rd4 {[%emt 0:01:25]} Ne3 {[%emt 0:02:43]} 39. b4 {[%emt 0:03:12]} Bxh5 {[%emt 0:00:28]} 40. b5 {[%emt 0:00:42]} Bf3 {[%emt 0:00:06]} 41. b6 {[%emt 0:00:50]} h5 {[%emt 0:00:48]} 42. Ra3 {[%emt 0:00:53]} Re8 {[%emt 0:01:04]} 43. Rb3 {[%emt 0:00:16]} Bd5 {[%emt 0:00:27]} 44. Rxe3 {[%emt 0:00:05]} Rxe3 {[%emt 0:00:18]} 45. Rxd5 {[%emt 0:00:07]} h4 {[%emt 0:00:21]} 46. a4 {[%emt 0:00:41]} h3 {[%emt 0:00:07]} 47. b7 {[%emt 0:00:27]} Re1+ {[%emt 0:01:22]} 48. Kb2 {[%emt 0:00:38]} h2 {[%emt 0:00:28]} 49. Rd6+ {[%emt 0:00:28]} Re6 {[%emt 0:00:31]} 50. b8=Q {[%emt 0:00:06]} h1=Q {[%emt 0:00:10]} 51. Qd8+ {[%emt 0:00:49]} Ke5 {[%emt 0:00:13]} 52. Rxe6+ {[%emt 0:00:46]} Kxe6 {[%emt 0:00:02]} 53. a5 {[%emt 0:00:38]} Qc6 {[%emt 0:01:33]} 54. Qb6 {[%emt 0:00:18]} Kd7 {[%emt 0:00:25]} 55. Qxc6+ {[%emt 0:00:03]} Kxc6 {[%emt 0:00:01]} 56. c4 {[%emt 0:00:01]} Kb7 {[%emt 0:01:07]} 57. c5 {[%emt 0:00:08]} f4 {[%emt 0:00:27]} 58. Kc3 {[%emt 0:00:05]} Kc6 {[%emt 0:00:32]} 59. a6 {[%emt 0:00:01]} 1-0

[Event "SixDays GM March 2024"]
[Site "Budapest"]
[Date "2024.04.01"]
[Round "5.5"]
[White "Konyves, Almos"]
[Black "Pribelszky, Bence"]
[Result "1/2-1/2"]
[ECO "A53"]
[WhiteElo "2306"]
[BlackElo "2354"]
[Annotator "ChessBase"]
[PlyCount "100"]
[EventDate "2024.03.26"]
[EventType "tourn"]
[EventCountry "HUN"]
[SourceTitle "playchess.com"]
[Source "ChessBase"]
[SourceQuality "1"]
[TimeControl "5400+30"]

1. d4 {[%emt 0:00:05]} Nf6 {[%emt 0:00:09]} 2. c4 {[%emt 0:00:08]} d6 {[%emt 0:00:18]} 3. Nc3 {[%emt 0:00:13]} Bf5 {[%emt 0:00:08]} 4. Nf3 {[%emt 0:05:54]} h6 {[%emt 0:00:07]} 5. e3 {[%emt 0:02:47]} e6 {[%emt 0:00:35]} 6. Bd3 {[%emt 0:00:17]} Bxd3 {[%emt 0:00:07]} 7. Qxd3 {[%emt 0:00:03]} c6 {[%emt 0:00:05]} 8. e4 {[%emt 0:03:56]} d5 {[%emt 0:00:05]} 9. Nd2 {[%emt 0:13:05]} Be7 {[%emt 0:17:18]} 10. O-O {[%emt 0:05:11]} O-O {[%emt 0:01:49]} 11. e5 {[%emt 0:09:33]} Nfd7 {[%emt 0:02:11]} 12. f4 {[%emt 0:00:11]} f5 {[%emt 0:07:17]} 13. g4 {[%emt 0:01:30]} Na6 {[%emt 0:04:28]} 14. a3 {[%emt 0:03:50]} Nc7 {[%emt 0:10:29]} 15. gxf5 {[%emt 0:02:39]} Rxf5 {[%emt 0:00:28]} 16. cxd5 {[%emt 0:04:46]} Nxd5 {[%emt 0:00:29]} 17. Nde4 {[%emt 0:00:58]} Qb6 {[%emt 0:10:08]} 18. Nxd5 {[%emt 0:01:55]} cxd5 {[%emt 0:00:08]} 19. Ng3 {[%emt 0:00:08]} Rf7 {[%emt 0:02:47]} 20. Be3 {[%emt 0:00:30]} Bh4 {[%emt 0:01:55]} 21. Rf2 {[%emt 0:04:19]} Bxg3 {[%emt 0:09:00]} 22. hxg3 {[%emt 0:00:04]} h5 {[%emt 0:00:04]} 23. Rh2 {[%emt 0:08:22]} Rf5 {[%emt 0:00:05]} 24. Qe2 {[%emt 0:00:54]} Rc8 {[%emt 0:02:17]} 25. Rf1 {[%emt 0:01:45]} Qb3 {[%emt 0:02:04]} 26. Kh1 {[%emt 0:11:02]} Nf8 {[%emt 0:04:47]} 27. Rg1 {[%emt 0:08:18]} Rc7 {[%emt 0:01:22]} 28. Bc1 {[%emt 0:07:19]} g6 {[%emt 0:02:38]} 29. Be3 {[%emt 0:00:43]} Kf7 {[%emt 0:01:49]} 30. g4 {[%emt 0:00:55]} hxg4 {[%emt 0:00:02]} 31. Rxg4 {[%emt 0:00:12]} Ke8 {[%emt 0:00:20]} 32. Rgh4 {[%emt 0:03:54]} Rff7 {[%emt 0:00:56]} 33. Rh8 {[%emt 0:00:16]} Qa2 {[%emt 0:10:28]} 34. Qb5+ {[%emt 0:00:26]} Rc6 {[%emt 0:01:01]} 35. Qf1 {[%emt 0:01:00]} Qb3 {[%emt 0:02:25]} 36. R8h3 {[%emt 0:00:09]} Rcc7 {[%emt 0:00:51]} 37. Qe2 {[%emt 0:00:57]} Rh7 {[%emt 0:00:54]} 38. Rxh7 {[%emt 0:00:17]} Rxh7 {[%emt 0:00:41]} 39. Rxh7 {[%emt 0:00:03]} Nxh7 {[%emt 0:00:02]} 40. Kg2 {[%emt 0:00:22]} Nf8 {[%emt 0:00:35]} 41. Kf2 {[%emt 0:00:20]} Nd7 {[%emt 0:00:29]} 42. Kf3 {[%emt 0:00:48]} Nb6 {[%emt 0:00:49]} 43. Qg2 {[%emt 0:00:42]} Qd3 {[%emt 0:00:02]} 44. Qh3 {[%emt 0:00:06]} Qe4+ {[%emt 0:06:55]} 45. Kf2 {[%emt 0:00:04]} Qf5 {[%emt 0:00:40]} 46. Qh8+ {[%emt 0:00:05]} Kd7 {[%emt 0:00:37]} 47. Qb8 {[%emt 0:00:31]} Qc2+ {[%emt 0:00:14]} 48. Kf3 {[%emt 0:00:03]} Qe4+ {[%emt 0:00:18]} 49. Kf2 {[%emt 0:00:03]} Qc2+ {[%emt 0:00:02]} 50. Kf3 {[%emt 0:00:02]} Qe4+ {[%emt 0:01:29]} 1/2-1/2

[Event "SixDays GM March 2024"]
[Site "Budapest"]
[Date "2024.04.02"]
[Round "6.1"]
[White "Horvath, Adam"]
[Black "Pribelszky, Bence"]
[Result "1-0"]
[ECO "C00"]
[WhiteElo "2440"]
[BlackElo "2354"]
[Annotator "TA"]
[PlyCount "67"]
[EventDate "2024.03.26"]
[EventType "tourn"]
[EventCountry "HUN"]
[SourceTitle "playchess.com"]
[Source "ChessBase"]
[SourceQuality "1"]
[TimeControl "5400+30"]

{[%evp 10,67,-10,0,0,0,0,0,0,-13,0,0,0,0,0,0,22,26,29,27,29,16,18,15,51,56,58,51,215,193,205,205,201,210,216,224,220,107,104,103,106,108,376,422,395,284,514,417,480,407,412,412,535,529,778,785,725,686,843,837]} 1. e4 {[%emt 0:00:03]} e6 {[%emt 0:06:29]} 2. d4 {[%emt 0:00:29]} d5 {[%emt 0:00:05]} 3. Bd3 {[%emt 0:04:52][%cal Bf1d3,Bd3e4,Be4f3][%mdl 32]} dxe4 {[%emt 0:00:28]} 4. Bxe4 {[%emt 0:00:05]} Nf6 {[%emt 0:00:06]} 5. Bf3 {[%emt 0:00:03]} c5 {[%emt 0:00:06]} 6. Ne2 {[%emt 0:00:06]} Nc6 {[%emt 0:00:05]} 7. Be3 {[%emt 0:00:10]} cxd4 {[%emt 0:00:27]} 8. Nxd4 {[%emt 0:00:04]} Ne5 {[%emt 0:00:10] The position is equal.} 9. O-O {[%emt 0:04:34]} a6 {[%emt 0:01:59]} 10. Nc3 {[%emt 0:06:56]} Be7 {[%emt 0:09:33]} 11. Qe2 {[%emt 0:06:06]} O-O {[%emt 0:04:27]} 12. Rfe1 {[%emt 0:08:37]} Bb4 {[%emt 0:10:00]} 13. Rad1 {[%emt 0:02:08][%cal Od4c6]} Bxc3 {[%emt 0:07:34]} 14. bxc3 {[%emt 0:02:51][%cal Od4e6] Black must now prevent Nxe6!} Qa5 {[%emt 0:02:21][%csl LRa2,LRc3]} 15. Bg5 {[%emt 0:21:50]} Nxf3+ {[%emt 0:03:54]} 16. Nxf3 {[%emt 0:00:14]} Nd5 {[%emt 0:04:28]} 17. c4 {[%emt 0:00:27]} Nb4 {[%emt 0:11:41][%cal Of7f6]} 18. Bd2 {[%emt 0:20:57] Rb1 is the strong threat.} Qc5 $2 {[%emt 0:00:36]} ({Better is} 18... Qa4 $1 $14) 19. Bf4 $1 $18 {[%emt 0:00:05] Hoping for Bd6.} Qa5 {[%emt 0:07:04][%cal Of7f6]} 20. Bd6 {[%emt 0:06:10] Black is weak on the dark squares} Re8 {[%emt 0:00:08]} 21. Ne5 {[%emt 0:03:18] And now Qh5 would win.} Nc6 {[%emt 0:02:40] [#]} 22. Qh5 {[%emt 0:02:10]} Nxe5 {[%emt 0:00:48]} 23. Bxe5 {[%emt 0:01:48]} (23. Rxe5 $18 {is the precise move to win.} Qxa2 24. Rg5) 23... Rf8 $16 {[%emt 0:09:57][%cal Of7f6] [#] aiming for ...f6!} 24. Qg5 $40 {[%emt 0:01:17][%csl Ge5][%cal Rg5g7][%mdl 128] White goes for the king.} f6 {[%emt 0:00:05]} (24... Qxa2 25. Qxg7#) 25. Bxf6 {[%emt 0:00:03]} Qc7 {[%emt 0:01:47][%mdl 8192]} (25... Qxg5 $16 26. Bxg5 h6) 26. Be5 $18 {[%emt 0:01:45]} Qf7 {[%emt 0:00:05]} 27. Qg3 {[%emt 0:00:21] Strongly threatening Re4. Active counter play!} b5 $2 {[%emt 0:03:07]} (27... Qg6 {might work better.} 28. Qxg6 hxg6) 28. Rd4 {[%emt 0:00:13]} Ra7 {[%emt 0:00:59]} 29. cxb5 {[%emt 0:02:25]} axb5 {[%emt 0:00:06] [#]} 30. Bxg7 $1 {[%emt 0:00:05][%mdl 512]} Qxg7 {[%emt 0:01:16]} (30... Qxf2+ 31. Qxf2) 31. Rg4 {[%emt 0:00:04] White is clearly winning.} e5 {[%emt 0:00:43]} 32. Rxg7+ {[%emt 0:02:32]} Rxg7 {[%emt 0:00:05]} 33. Qxe5 {[%emt 0:00:04]} Bb7 {[%emt 0:00:06]} 34. g3 {[%emt 0:00:31] Weighted Error Value: White=0.23 (precise) /Black=0.46.  Loses game:     	---       	Black=2      Mistake:       	White=1     	Black=1      Inaccurate:     	---       	Black=2      OK:         	White=14    	Black=10     Best:        	White=2     	Black=5      Strong:       	White=1     	---} (34. Qxb5 $2 {too greedy.} Rxg2+ (34... Bxg2 35. Qc5 $11) 35. Kh1 Rg7+ $19 (35... Rgxf2+ $2 {loses.} 36. Qxb7 R2f6 37. Rg1+ Rg6 38. Qd5+ Kg7 39. a4 $18) (35... Rgxf2+ $2 36. Qxb7 Rf1+ 37. Rxf1 $18)) 1-0

[Event "SixDays GM March 2024"]
[Site "Budapest"]
[Date "2024.04.02"]
[Round "6.2"]
[White "Juhasz, Agoston"]
[Black "Konyves, Almos"]
[Result "1-0"]
[ECO "C97"]
[WhiteElo "2406"]
[BlackElo "2306"]
[Annotator "TA"]
[PlyCount "79"]
[EventDate "2024.03.26"]
[EventType "tourn"]
[EventCountry "HUN"]
[SourceTitle "playchess.com"]
[Source "ChessBase"]
[SourceQuality "1"]
[TimeControl "5400+30"]

{[%evp 23,79,26,45,25,61,46,57,53,50,39,35,14,131,118,127,110,144,136,169,161,183,204,193,186,195,199,266,252,245,252,334,345,393,386,402,403,412,393,390,425,431,407,530,541,630,637,710,710,971,922,947,901,902,932,851,815,5257,2847]} 1. e4 {[%emt 0:00:04]} e5 {[%emt 0:00:36]} 2. Nf3 {[%emt 0:00:11]} Nc6 {[%emt 0:00:04]} 3. Bb5 {[%emt 0:00:36]} a6 {[%emt 0:00:05]} 4. Ba4 {[%emt 0:00:03]} Nf6 {[%emt 0:00:03]} 5. O-O {[%emt 0:00:07]} Be7 {[%emt 0:00:02]} 6. Re1 {[%emt 0:00:13]} b5 {[%emt 0:00:03]} 7. Bb3 {[%emt 0:00:04]} d6 {[%emt 0:00:03]} 8. c3 {[%emt 0:00:12]} O-O {[%emt 0:00:04]} 9. h3 {[%emt 0:00:13]} Na5 {[%emt 0:00:45][%cal Bc6a5,Ba5c4,Bc4b6][%mdl 32]} 10. Bc2 {[%emt 0:00:07]} c5 {[%emt 0:00:02][%cal Bc7c5,Bc5c4][%mdl 32]} 11. d4 {[%emt 0:00:17]} Qc7 {[%emt 0:00:03]} 12. d5 {[%emt 0:00:39]} Nc4 {[%emt 0:00:04]} 13. b3 {[%emt 0:00:28]} Nb6 {[%emt 0:00:03]} 14. a4 {[%emt 0:00:33]} c4 {[%emt 0:00:04]} 15. axb5 {[%emt 0:02:20] White is slightly better.} cxb3 {[%emt 0:03:00]} 16. Bd3 {[%emt 0:00:26]} Nfd7 {[%emt 0:11:51][%cal Bf6d7,Bd7c5,Bc5d3][%mdl 32]} 17. Be3 {[%emt 0:02:23]} a5 {[%emt 0:04:01]} (17... Nc5 $11 {keeps the balance.}) 18. Qxb3 $16 {[%emt 0:05:21] White is more active.} Nc5 {[%emt 0:00:47]} 19. Qc2 {[%emt 0:26:56]} Nxd3 {[%emt 0:24:41]} 20. Qxd3 {[%emt 0:00:11]} f5 {[%emt 0:00:08][%cal Bf7f5,Bf5f4][%mdl 32]} 21. Nfd2 {[%emt 0:11:39]} Bh4 {[%emt 0:17:48]} 22. c4 {[%emt 0:06:26]} f4 {[%emt 0:17:19]} 23. Bxb6 {[%emt 0:00:39]} Qxb6 {[%emt 0:00:04]} 24. Re2 {[%emt 0:04:49][%cal Be1e2,Be2a2,Ba2a4][%mdl 32]} Bd8 {[%emt 0:10:14]} (24... Bd7 $142 25. Nc3 Rac8) 25. Nc3 $18 {[%emt 0:00:55]} Qa7 {[%emt 0:00:26]} 26. Na4 {[%emt 0:02:06]} Bb6 {[%emt 0:00:04]} 27. Nf3 {[%emt 0:02:17]} Bd7 {[%emt 0:01:54]} 28. Rea2 {[%emt 0:02:17]} Rfc8 {[%emt 0:01:00][%cal Bf8c8,Bc8c7,Bc7a7][%mdl 32]} 29. Nxb6 {[%emt 0:01:46]} Qxb6 {[%emt 0:00:03]} 30. Nd2 {[%emt 0:00:12]} Rc7 {[%emt 0:02:11]} 31. Ra4 {[%emt 0:01:20]} Rca7 {[%emt 0:03:43]} 32. Nb3 {[%emt 0:01:47]} g5 {[%emt 0:00:40]} 33. Qc3 {[%emt 0:01:27] White is clearly winning.} g4 {[%emt 0:00:18]} 34. hxg4 {[%emt 0:00:44]} ({Weaker is} 34. Rxa5 g3 35. c5 dxc5 36. Rxa7 (36. fxg3 c4+ 37. Kh2 cxb3 $11) 36... Rxa7 $18) (34. Nxa5 gxh3 35. gxh3 Kh8 $18) 34... Bxg4 {[%emt 0:00:05]} 35. Rxa5 {[%emt 0:01:28]} f3 {[%emt 0:00:40]} 36. c5 {[%emt 0:10:24]} dxc5 {[%emt 0:00:04]} 37. Rxa7 {[%emt 0:01:14]} Rxa7 {[%emt 0:00:04]} 38. Rxa7 {[%emt 0:00:05]} (38. Qxc5 {is a self mate.} Rxa1+ 39. Nxa1 Qxc5 40. gxf3 Bxf3 (40... Qc1+ $2 41. Kg2 $19) 41. Nb3 Qc3 (41... Qxb5 {leads to mate.} 42. Nd2 Be2 43. Kg2 Qd3 44. d6 Qxd2 45. d7 Qxd7 46. f3 Qd4 47. Kg3 Qg1+ 48. Kh4 Qh2+ 49. Kg4 Qf4+ 50. Kh5 Bxf3#) 42. Kf1 Qxb3 43. Kg1 Bxe4 (43... Qxb5 44. d6 Qb1+ 45. Kh2 Qh1+ 46. Kg3 Qg2+ 47. Kh4 Qg4#) 44. Kh2 Qf3 45. Kg1 Qh1#) 38... Qxa7 {[%emt 0:00:04]} 39. gxf3 {[%emt 0:00:06][%cal Bg2f3,Bf3g4][%mdl 32]} c4 {[%emt 0:00:58]} 40. fxg4 {[%emt 0:02:23] Black got outplayed after the opening.   Weighted Error Value: White=0.01 (flawless) /Black=0.40.  Mistake:       	---       	Black=2      Inaccurate:     	---       	Black=3      OK:         	White=14    	Black=5      Best:        	White=4     	Black=1} 1-0